{"text_format":"3","workbook":"xlsx","n_sheets":2,"sheets":["Biudžeto suvestinė","Išsami biudžeto informacija"],"not_rendered":{"images":1,"defined_names":1},"read":"whole","date_system":"1900"}

{"sheet":"Biudžeto suvestinė","index":0,"n_rows":28,"n_cols":7,"rows_kept":28}
[{"$nulls":6}," "]
[]
[null,"BENDRAS VESTUVIŲ BIUDŽETAS",{"v":20000,"d":"EUR 20,000"}]
[]
[null,"IŠLAIDOS","Išlaidų priskyrimas \n%","Skirtasis biudžetas","Prognozuojamas \nIšlaidos","Faktinis \nIšlaidos"]
[null,"Pokylis",{"v":0.5,"d":"50%"},{"$f":"Bendras_vestuvių_biudžetas*'Biudžeto suvestinė'!$C6","v":{"v":10000,"d":"10,000 EUR"}},{"$f":"Lentelė_Priėmimas[[#Totals],[Numatomos išlaidos]]","v":{"v":0,"d":"0 EUR"}},{"$f":"Lentelė_Priėmimas[[#Totals],[Faktinės išlaidos]]","v":{"v":0,"d":"0 EUR"}}]
[null,"Apranga",{"v":0.1,"d":"10%"},{"$f":"Bendras_vestuvių_biudžetas*'Biudžeto suvestinė'!$C7","v":{"v":2000,"d":"2,000 EUR"}},{"$f":"Lentelė_Drabužiai[[#Totals],[Numatomos išlaidos]]","v":{"v":0,"d":"0 EUR"}},{"$f":"Lentelė_Drabužiai[[#Totals],[Faktinės išlaidos]]","v":{"v":0,"d":"0 EUR"}}]
[null,"Gėlės ir dekoracijos",{"v":0.1,"d":"10%"},{"$f":"Bendras_vestuvių_biudžetas*'Biudžeto suvestinė'!$C8","v":{"v":2000,"d":"2,000 EUR"}},{"$f":"Lentelė_GėlėsIrDekoracijos[[#Totals],[Numatomos išlaidos]]","v":{"v":0,"d":"0 EUR"}},{"$f":"Lentelė_GėlėsIrDekoracijos[[#Totals],[Faktinės išlaidos]]","v":{"v":0,"d":"0 EUR"}}]
[null,"Muzika",{"v":0.1,"d":"10%"},{"$f":"Bendras_vestuvių_biudžetas*'Biudžeto suvestinė'!$C9","v":{"v":2000,"d":"2,000 EUR"}},{"$f":"Lentelė_Muzika[[#Totals],[Numatomos išlaidos]]","v":{"v":0,"d":"0 EUR"}},{"$f":"Lentelė_Muzika[[#Totals],[Faktinės išlaidos]]","v":{"v":0,"d":"0 EUR"}}]
[null,"Nuotraukos ir vaizdo įrašai",{"v":0.1,"d":"10%"},{"$f":"Bendras_vestuvių_biudžetas*'Biudžeto suvestinė'!$C10","v":{"v":2000,"d":"2,000 EUR"}},{"$f":"Lentelė_FotografijaIrVaizdoĮrašas[[#Totals],[Numatomos išlaidos]]","v":{"v":0,"d":"0 EUR"}},{"$f":"Lentelė_FotografijaIrVaizdoĮrašas[[#Totals],[Faktinės išlaidos]]","v":{"v":0,"d":"0 EUR"}}]
[null,"Dovanėlės ir dovanos",{"v":0.03,"d":"3%"},{"$f":"Bendras_vestuvių_biudžetas*'Biudžeto suvestinė'!$C11","v":{"v":600,"d":"600 EUR"}},{"$f":"Lentelė_Dovanos[[#Totals],[Numatomos išlaidos]]","v":{"v":0,"d":"0 EUR"}},{"$f":"Lentelė_Dovanos[[#Totals],[Faktinės išlaidos]]","v":{"v":0,"d":"0 EUR"}}]
[null,"Ceremonija",{"v":0.02,"d":"2%"},{"$f":"Bendras_vestuvių_biudžetas*'Biudžeto suvestinė'!$C12","v":{"v":400,"d":"400 EUR"}},{"$f":"Lentelė_Ceremonija[[#Totals],[Numatomos išlaidos]]","v":{"v":0,"d":"0 EUR"}},{"$f":"Lentelė_Ceremonija[[#Totals],[Faktinės išlaidos]]","v":{"v":0,"d":"0 EUR"}}]
[null,"Kanceliariniai reikmenys",{"v":0.02,"d":"2%"},{"$f":"Bendras_vestuvių_biudžetas*'Biudžeto suvestinė'!$C13","v":{"v":400,"d":"400 EUR"}},{"$f":"Lentelė_Kvietimai[[#Totals],[Numatomos išlaidos]]","v":{"v":0,"d":"0 EUR"}},{"$f":"Lentelė_Kvietimai[[#Totals],[Faktinės išlaidos]]","v":{"v":0,"d":"0 EUR"}}]
[null,"Vestuvių žiedai",{"v":0.02,"d":"2%"},{"$f":"Bendras_vestuvių_biudžetas*'Biudžeto suvestinė'!$C14","v":{"v":400,"d":"400 EUR"}},{"$f":"Lentelė_VestuviųŽiedai[[#Totals],[Numatomos išlaidos]]","v":{"v":0,"d":"0 EUR"}},{"$f":"Lentelė_VestuviųŽiedai[[#Totals],[Faktinės išlaidos]]","v":{"v":0,"d":"0 EUR"}}]
[null,"Transportas",{"v":0.01,"d":"1%"},{"$f":"Bendras_vestuvių_biudžetas*'Biudžeto suvestinė'!$C15","v":{"v":200,"d":"200 EUR"}},{"$f":"Lentelė_Transportas[[#Totals],[Numatomos išlaidos]]","v":{"v":0,"d":"0 EUR"}},{"$f":"Lentelė_Transportas[[#Totals],[Faktinės išlaidos]]","v":{"v":0,"d":"0 EUR"}}]
[null,"Bendra suma",{"$f":"SUM(C6:C15)","v":{"v":1,"d":"100%"}},{"$f":"SUM(D6:D15)","v":{"v":20000,"d":"20,000 EUR"}},{"v":0,"d":"0 EUR"},{"v":0,"d":"0 EUR"}]
[]
[null,"ĮMOKOS"]
[null,"Fondų šaltinis","Įnašas"]
[null,"Santaupos",{"v":10000,"d":"10,000.00 EUR"}]
[null,"1 partnerio mama ir tėtis",{"v":4000,"d":"4,000.00 EUR"}]
[null,"1 partnerio seneliai",{"v":2000,"d":"2,000.00 EUR"}]
[null,"2 partnerio mama ir tėtis",{"v":4000,"d":"4,000.00 EUR"}]
[null,"2 partnerio seneliai",{"v":4000,"d":"4,000.00 EUR"}]
[null,"Kitos įmokos",{"v":2000,"d":"2,000.00 EUR"}]
[null,"Bendra suma",{"$f":"SUBTOTAL(109,Lentelė_Įnašai[Įnašas])","v":{"v":26000,"d":"EUR 26,000"}}]
[]
[null,{"$f":"IF(Lentelė_Įnašai[[#Totals],[Įnašas]]<Bendras_vestuvių_biudžetas,\"Skirtumas\",\"Turimi papildomi fondai\")","v":"Turimi papildomi fondai"},{"$f":"IF(Lentelė_Įnašai[[#Totals],[Įnašas]]<Bendras_vestuvių_biudžetas,Bendras_vestuvių_biudžetas-Lentelė_Įnašai[[#Totals],[Įnašas]],Lentelė_Įnašai[[#Totals],[Įnašas]]-Bendras_vestuvių_biudžetas)","v":{"v":6000,"d":"EUR 6,000"}}]

{"sheet":"Išsami biudžeto informacija","index":1,"n_rows":80,"n_cols":4,"rows_kept":80}
[]
[null,"POKYLIS","Numatomos išlaidos","Faktinės išlaidos"]
[null,"Vieta ir nuoma"]
[null,"Maistas ir aptarnavimas"]
[null,"Gėrimai"]
[null,"Tortas"]
[null,"Papildomi mokesčiai"]
[null,"Bendra suma",{"$f":"SUBTOTAL(109,Lentelė_Priėmimas[Numatomos išlaidos])","v":{"v":0,"d":"EUR 0.00"}},{"$f":"SUBTOTAL(109,Lentelė_Priėmimas[Faktinės išlaidos])","v":{"v":0,"d":"EUR 0.00"}}]
[]
[null,"DRABUŽIAI","Numatomos išlaidos","Faktinės išlaidos"]
[null,"Kostiumai ir (arba) suknelės"]
[null,"Pakeitimai"]
[null,"Skrybėlės ir skraistės"]
[null,"Aksesuarai"]
[null,"Šukuosena ir makiažas"]
[null,"Papildomi mokesčiai"]
[null,"Bendra suma",{"$f":"SUBTOTAL(109,Lentelė_Drabužiai[Numatomos išlaidos])","v":{"v":0,"d":"EUR 0.00"}},{"$f":"SUBTOTAL(109,Lentelė_Drabužiai[Faktinės išlaidos])","v":{"v":0,"d":"EUR 0.00"}}]
[]
[null,"GĖLĖS IR DEKORACIJOS","Numatomos išlaidos","Faktinės išlaidos"]
[null,"Gėlės ceremonijai"]
[null,"Gėlių mergaitės žiedai ir krepšelis"]
[null,"Žiedų pagalvėlė"]
[null,"Puokštės"]
[null,"Įsegami žiedai"]
[null,"Prie krūtinės segamos puokštelės"]
[null,"Sutikimo dekoracijos"]
[null,"Apšvietimas"]
[null,"Papildomi mokesčiai"]
[null,"Bendra suma",{"$f":"SUBTOTAL(109,Lentelė_GėlėsIrDekoracijos[Numatomos išlaidos])","v":{"v":0,"d":"EUR 0.00"}},{"$f":"SUBTOTAL(109,Lentelė_GėlėsIrDekoracijos[Faktinės išlaidos])","v":{"v":0,"d":"EUR 0.00"}}]
[]
[null,"MUZIKA","Numatomos išlaidos","Faktinės išlaidos"]
[null,"Ceremonijos muzikantai"]
[null,"Kokteilių pertraukėlės muzikantai"]
[null,"Sutikimo grupė, vedėjas ar pramogos"]
[null,"Garso sistemos ar šokių aikštelės nuoma"]
[null,"Papildomi mokesčiai"]
[null,"Bendra suma",{"$f":"SUBTOTAL(109,Lentelė_Muzika[Numatomos išlaidos])","v":{"v":0,"d":"EUR 0.00"}},{"$f":"SUBTOTAL(109,Lentelė_Muzika[Faktinės išlaidos])","v":{"v":0,"d":"EUR 0.00"}}]
[]
[null,"NUOTRAUKOS IR FILMAVIMAS","Numatomos išlaidos","Faktinės išlaidos"]
[null,"Nuotraukos"]
[null,"Filmavimas ir vaizdinė medžiaga"]
[null,"Papildomos nuotraukos ir albumai"]
[null,"Papildomi mokesčiai"]
[null,"Bendra suma",{"$f":"SUBTOTAL(109,Lentelė_FotografijaIrVaizdoĮrašas[Numatomos išlaidos])","v":{"v":0,"d":"EUR 0.00"}},{"$f":"SUBTOTAL(109,Lentelė_FotografijaIrVaizdoĮrašas[Faktinės išlaidos])","v":{"v":0,"d":"EUR 0.00"}}]
[]
[null,"DOVANĖLĖS IR DOVANOS","Numatomos išlaidos","Faktinės išlaidos"]
[null,"Sveikinimo dovanos"]
[null,"Šventinės dovanos"]
[null,"Papildomi mokesčiai"]
[null,"Bendra suma",{"$f":"SUBTOTAL(109,Lentelė_Dovanos[Numatomos išlaidos])","v":{"v":0,"d":"EUR 0.00"}},{"$f":"SUBTOTAL(109,Lentelė_Dovanos[Faktinės išlaidos])","v":{"v":0,"d":"EUR 0.00"}}]
[]
[null,"CEREMONIJA","Numatomos išlaidos","Faktinės išlaidos"]
[null,"Vietos mokestis"]
[null,"Padavėjo mokestis arba auka bažnyčiai"]
[null,"Papildomi mokesčiai"]
[null,"Bendra suma",{"$f":"SUBTOTAL(109,Lentelė_Ceremonija[Numatomos išlaidos])","v":{"v":0,"d":"EUR 0.00"}},{"$f":"SUBTOTAL(109,Lentelė_Ceremonija[Faktinės išlaidos])","v":{"v":0,"d":"EUR 0.00"}}]
[]
[null,"KANCELIARINIAI REIKMENYS","Numatomos išlaidos","Faktinės išlaidos"]
[null,"Atminimo kortelės"]
[null,"Kvietimai"]
[null,"Programos"]
[null,"Stalo ir vietų kortelės"]
[null,"Meniu kortelės"]
[null,"Padėkos kortelės"]
[null,"Pašto išlaidos"]
[null,"Papildomi mokesčiai"]
[null,"Bendra suma",{"$f":"SUBTOTAL(109,Lentelė_Kvietimai[Numatomos išlaidos])","v":{"v":0,"d":"EUR 0.00"}},{"$f":"SUBTOTAL(109,Lentelė_Kvietimai[Faktinės išlaidos])","v":{"v":0,"d":"EUR 0.00"}}]
[]
[null,"VESTUVIŲ ŽIEDAI","Numatomos išlaidos","Faktinės išlaidos"]
[null,"Vestuvių žiedai"]
[null,"Žiedų aksesuarai"]
[null,"Bendra suma",{"$f":"SUBTOTAL(109,Lentelė_VestuviųŽiedai[Numatomos išlaidos])","v":{"v":0,"d":"EUR 0.00"}},{"$f":"SUBTOTAL(109,Lentelė_VestuviųŽiedai[Faktinės išlaidos])","v":{"v":0,"d":"EUR 0.00"}}]
[]
[null,"TRANSPORTAS","Numatomos išlaidos","Faktinės išlaidos"]
[null,"Pagrindinio automobilio nuoma"]
[null,"Svečių automobilių nuoma"]
[null,"Svečių transportavimas už miesto"]
[null,"Automobilių parkavimas"]
[null,"Papildomi mokesčiai"]
[null,"Bendra suma",{"$f":"SUBTOTAL(109,Lentelė_Transportas[Numatomos išlaidos])","v":{"v":0,"d":"EUR 0.00"}},{"$f":"SUBTOTAL(109,Lentelė_Transportas[Faktinės išlaidos])","v":{"v":0,"d":"EUR 0.00"}}]